lending/lending_fUSD_20240522
["ID","MTS","AMOUNT","RATE_DAILY","PERIOD"]
[327709092,1716341456633,-500.0,0.00030958,6]
[327709093,1716341456645,-500.0,0.00030958,6]
[327709094,1716341456656,-500.0,0.00030958,6]
[327709095,1716341456670,-500.0,0.00030958,6]
[327709096,1716341456682,-2226.46,0.00030958,6]
[327709097,1716341456692,-578.93896589,0.00030958,6]
[327709098,1716341456703,-2270.24,0.00030958,6]
[327709099,1716341456714,-1022.67,0.00030958,6]
[327709100,1716341456727,-1318.93,0.00030958,6]
[327709101,1716341456738,-500.0,0.00030958,6]
[327709102,1716341456748,-394.84,0.00030958,6]
[327709103,1716341456760,-500.0,0.00030958,6]
[327709104,1716341456771,-500.0,0.00030958,6]
[327709105,1716341456784,-500.0,0.00030958,6]
[327709106,1716341456795,-500.0,0.00030958,6]
[327709107,1716341456807,-500.0,0.00030958,6]
[327709108,1716341456818,-458.73872911,0.00030958,6]
[327709109,1716341456830,-500.0,0.00030958,6]
[327709110,1716341456842,-500.0,0.00030958,6]
[327709111,1716341456854,-500.0,0.00030958,6]
[327709112,1716341456867,-500.0,0.00030958,6]
[327709113,1716341456879,-500.0,0.00030958,6]
[327709114,1716341456890,-500.0,0.00030958,6]
[327709115,1716341456902,-500.0,0.00030958,6]
[327709116,1716341456913,-214.41133528,0.00030958,6]
[327709117,1716341456924,-500.0,0.00030958,6]
[327709118,1716341456935,-585.868114,0.00030958,6]
[327709119,1716341456947,-553.54,0.00030973,2]
[327709120,1716341456959,-153.67101316,0.00031085,7]
[327709121,1716341456970,-151.4335943,0.00031162,7]
[327709122,1716341456982,-500.0,0.00031232,6]
[327709123,1716341456993,-501.64981827,0.00031232,6]
[327709124,1716341457004,-500.0,0.00031232,6]
[327709125,1716341457016,-238.27,0.00031232,6]
[327709126,1716341457027,-495.12,0.00031232,6]
[327709127,1716341457038,-212.6,0.00031232,6]
[327709128,1716341457049,-183.0,0.00031232,6]
[327709129,1716341457061,-208.91546757,0.00031232,6]
[327709130,1716341457073,-500.0,0.00031232,6]
[327709131,1716341457084,-212.81,0.00031232,6]
[327709132,1716341457096,-276.79,0.00031232,6]
[327709133,1716341457107,-500.0,0.00031232,6]
[327709134,1716341457119,-500.0,0.00031232,6]
[327709135,1716341457130,-500.0,0.00031232,6]
[327709136,1716341457142,-500.0,0.00031232,6]
[327709137,1716341457154,-500.0,0.00031232,6]
[327709138,1716341457166,-500.0,0.00031232,6]
[327709139,1716341457177,-500.0,0.00031232,6]
[327709140,1716341457189,-500.0,0.00031232,6]
[327709141,1716341457203,-500.0,0.00031232,6]
[327709142,1716341457215,-516.49394082,0.00031232,6]
[327709143,1716341457225,-592.57,0.00031232,6]
[327709144,1716341457236,-500.0,0.00031232,6]
[327709145,1716341457248,-500.0,0.00031232,6]
[327709146,1716341457260,-500.0,0.00031232,6]
[327709147,1716341457272,-500.0,0.00031232,6]
[327709148,1716341457283,-500.0,0.00031232,6]
[327709149,1716341457295,-500.0,0.00031232,6]
[327709150,1716341457308,-500.0,0.00031232,6]
[327709151,1716341457319,-500.0,0.00031232,6]
[327709152,1716341457330,-500.0,0.00031232,6]
[327709153,1716341457343,-500.0,0.00031232,6]
[327709154,1716341457354,-500.0,0.00031232,6]
[327709155,1716341457364,-500.0,0.00031232,6]
[327709156,1716341457375,-500.0,0.00031232,6]
[327709157,1716341457386,-1243.06,0.00031232,6]
[327709158,1716341457402,-500.0,0.00031232,6]
[327709159,1716341457412,-500.0,0.00031232,6]
[327709160,1716341457423,-500.0,0.00031232,6]
[327709161,1716341457435,-569.38,0.00031232,6]
[327709162,1716341457450,-264.37,0.00031232,6]
[327709163,1716341457462,-500.0,0.00031232,6]
[327709164,1716341457474,-503.0,0.00031232,6]
[327709165,1716341457486,-468.2517352,0.00031232,6]
[327709166,1716341457496,-500.0,0.00031232,6]
[327709167,1716341457507,-500.0,0.00031232,6]
[327709168,1716341457519,-1051.15,0.00031232,6]
[327709169,1716341457531,-500.0,0.00031232,6]
[327709170,1716341457542,-500.0,0.00031232,6]
[327709171,1716341457553,-710.62,0.00031232,6]
[327709172,1716341457563,-500.0,0.00031232,6]
[327709173,1716341457575,-500.0,0.00031232,6]
[327709174,1716341457586,-500.0,0.00031232,6]
[327709175,1716341457596,-500.0,0.00031232,6]
[327709176,1716341457607,-185.84530449,0.00031232,6]
[327709177,1716341457617,-2226.46,0.00031232,6]
[327709178,1716341457628,-2270.24,0.00031232,6]
[327709179,1716341457638,-1022.67,0.00031232,6]
[327709180,1716341457649,-1318.93,0.00031232,6]
[327709181,1716341457660,-638.23991935,0.00031232,6]
[327709182,1716341457672,-500.0,0.00031232,6]
[327709183,1716341457683,-500.0,0.00031232,6]
[327709184,1716341457694,-500.0,0.00031232,6]
[327709185,1716341457706,-500.0,0.00031232,6]
[327709186,1716341457717,-500.0,0.00031232,6]
[327709187,1716341457728,-500.0,0.00031232,6]
[327709188,1716341457739,-500.0,0.00031232,6]
[327709189,1716341457750,-500.0,0.00031232,6]
[327709190,1716341457946,-495.40597523,0.00031232,6]
[327709191,1716341457959,-500.0,0.00031232,6]
[327709192,1716341457969,-500.0,0.00031232,6]
[327709193,1716341457979,-500.0,0.00031232,6]
[327709194,1716341457989,-500.0,0.00031232,6]
[327709195,1716341457999,-31832.33651111,0.00031309,2]
[327709196,1716341458009,-9664.62,0.00031426,2]
[327709197,1716341458019,-3316.01,0.00031426,2]
[327709198,1716341458030,-26458.35,0.00031426,2]
[327709199,1716341458039,-152.0,0.00031453,3]
[327709200,1716341458049,-500.0,0.00031506,6]
[327709201,1716341458059,-500.0,0.00031506,6]
[327709202,1716341458070,-500.0,0.00031506,6]
[327709203,1716341458080,-500.0,0.00031506,6]
[327709204,1716341458090,-500.0,0.00031506,6]
[327709205,1716341458100,-500.0,0.00031506,6]
[327709206,1716341458109,-473.09388181,0.00031506,6]
[327709207,1716341458118,-500.0,0.00031506,6]
[327709208,1716341458128,-500.0,0.00031506,6]
[327709209,1716341458138,-500.0,0.00031506,6]
[327709210,1716341458147,-221.92,0.00031506,6]
[327709211,1716341458158,-500.0,0.00031506,6]
[327709212,1716341458168,-592.57,0.00031506,6]
[327709213,1716341458178,-500.0,0.00031506,6]
[327709214,1716341458188,-500.0,0.00031506,6]
[327709215,1716341458198,-500.0,0.00031506,6]
[327709216,1716341458208,-500.0,0.00031506,6]
[327709217,1716341458218,-500.0,0.00031506,6]
[327709218,1716341458228,-500.0,0.00031506,6]
[327709219,1716341458238,-500.0,0.00031506,6]
[327709220,1716341458247,-500.0,0.00031506,6]
[327709221,1716341458257,-500.0,0.00031506,6]
[327709222,1716341458266,-500.0,0.00031506,6]
[327709223,1716341458276,-500.0,0.00031506,6]
[327709224,1716341458286,-500.0,0.00031506,6]
[327709225,1716341458295,-386.84655011,0.00031506,6]
[327709226,1716341458306,-1243.06,0.00031506,6]
[327709227,1716341458315,-500.0,0.00031506,6]
[327709228,1716341458326,-500.0,0.00031506,6]
[327709229,1716341458336,-500.0,0.00031506,6]
[327709230,1716341458347,-569.38,0.00031506,6]
[327709231,1716341458356,-500.0,0.00031506,6]
[327709232,1716341458366,-503.0,0.00031506,6]
[327709233,1716341458375,-500.0,0.00031506,6]
[327709234,1716341458384,-500.0,0.00031506,6]
[327709235,1716341458393,-1051.15,0.00031506,6]
[327709236,1716341458403,-500.0,0.00031506,6]
[327709237,1716341458412,-500.0,0.00031506,6]
[327709238,1716341458421,-710.62,0.00031506,6]
[327709239,1716341458429,-500.0,0.00031506,6]
[327709240,1716341458439,-500.0,0.00031506,6]
[327709241,1716341458451,-500.0,0.00031506,6]
[327709242,1716341458460,-500.0,0.00031506,6]
[327709243,1716341458470,-2226.46,0.00031506,6]
[327709244,1716341458479,-2270.24,0.00031506,6]
[327709245,1716341458489,-1022.67,0.00031506,6]
[327709246,1716341458499,-1318.93,0.00031506,6]
[327709247,1716341458508,-500.0,0.00031506,6]
[327709248,1716341458517,-500.0,0.00031506,6]
[327709249,1716341458529,-500.0,0.00031506,6]
[327709250,1716341458538,-500.0,0.00031506,6]
[327709251,1716341458547,-500.0,0.00031506,6]
[327709252,1716341458556,-500.0,0.00031506,6]
[327709253,1716341458565,-500.0,0.00031506,6]
[327709254,1716341458574,-500.0,0.00031506,6]
[327709255,1716341458584,-500.0,0.00031506,6]
[327709256,1716341458594,-500.0,0.00031506,6]
[327709257,1716341458603,-500.0,0.00031506,6]
[327709258,1716341458612,-500.0,0.00031506,6]
[327709259,1716341458622,-400.0,0.00031519,2]
[327709260,1716341458631,-155.34,0.00031546,2]
[327709261,1716341458641,-295.70950934,0.0003165,2]
[327709262,1716341458650,-500.0,0.0003178,6]
[327709263,1716341458660,-246.26000071,0.0003178,6]
[327709264,1716341458669,-500.0,0.0003178,6]
[327709265,1716341458678,-500.0,0.0003178,6]
[327709266,1716341458687,-500.0,0.0003178,6]
[327709267,1716341458697,-500.0,0.0003178,6]
[327709268,1716341458706,-500.0,0.0003178,6]
[327709269,1716341458716,-500.0,0.0003178,6]
[327709270,1716341458727,-591.89328464,0.0003178,6]
[327709271,1716341458736,-500.0,0.0003178,6]
[327709272,1716341458746,-592.57,0.0003178,6]
[327709273,1716341458755,-435.70952828,0.0003178,6]
[327709274,1716341458764,-500.0,0.0003178,6]
[327709275,1716341458774,-165.59589772,0.0003178,6]
[327709276,1716341458784,-500.0,0.0003178,6]
[327709277,1716341458794,-644.48004536,0.0003178,6]
[327709278,1716341458803,-500.0,0.0003178,6]
[327709279,1716341458813,-500.0,0.0003178,6]
[327709280,1716341458823,-500.0,0.0003178,6]
[327709281,1716341458832,-500.0,0.0003178,6]
[327709282,1716341458842,-397.22561745,0.0003178,6]
[327709283,1716341458851,-526.13938863,0.0003178,6]
[327709284,1716341458861,-500.0,0.0003178,6]
[327709285,1716341458870,-1243.06,0.0003178,6]
[327709286,1716341458880,-500.0,0.0003178,6]
[327709287,1716341458890,-500.0,0.0003178,6]
[327709288,1716341458899,-500.0,0.0003178,6]
[327709289,1716341458908,-569.38,0.0003178,6]
[327709290,1716341458918,-500.0,0.0003178,6]
[327709291,1716341458928,-503.0,0.0003178,6]
[327709292,1716341458938,-388.70582858,0.0003178,6]
[327709293,1716341458948,-500.0,0.0003178,6]
[327709294,1716341458957,-1051.15,0.0003178,6]
[327709295,1716341458967,-396.12035227,0.0003178,6]
[327709296,1716341458976,-500.0,0.0003178,6]
[327709297,1716341458986,-710.62,0.0003178,6]
[327709298,1716341458995,-500.0,0.0003178,6]
[327709299,1716341459004,-500.0,0.0003178,6]
[327709300,1716341459015,-384.31610182,0.0003178,6]
[327709301,1716341459024,-500.0,0.0003178,6]
[327709302,1716341459034,-2226.46,0.0003178,6]
[327709303,1716341459043,-2270.24,0.0003178,6]
[327709304,1716341459054,-1022.67,0.0003178,6]
[327709305,1716341459063,-1318.93,0.0003178,6]
[327709306,1716341459073,-500.0,0.0003178,6]
[327709307,1716341459083,-500.0,0.0003178,6]
[327709308,1716341459092,-500.0,0.0003178,6]
[327709309,1716341459101,-500.0,0.0003178,6]
[327709310,1716341459111,-500.0,0.0003178,6]
[327709311,1716341459121,-500.0,0.0003178,6]
[327709312,1716341459130,-500.0,0.0003178,6]
[327709313,1716341459140,-448.0517267,0.0003178,6]
[327709314,1716341459150,-428.16735861,0.0003178,6]
[327709315,1716341459159,-473.66703429,0.0003178,6]
[327709316,1716341459168,-500.0,0.0003178,6]
[327709317,1716341459177,-500.0,0.0003178,6]
[327709318,1716341459187,-239.43,0.000318,2]
[327709319,1716341459196,-199.26,0.000318,2]
[327709320,1716341459206,-333.50445826,0.00032,4]
[327709321,1716341459217,-620.4634121,0.00032054,6]
[327709322,1716341459226,-500.0,0.00032054,6]
[327709323,1716341459235,-500.0,0.00032054,6]
[327709324,1716341459244,-500.0,0.00032054,6]
[327709325,1716341459253,-500.0,0.00032054,6]
[327709326,1716341459263,-500.0,0.00032054,6]
[327709327,1716341459272,-500.0,0.00032054,6]
[327709328,1716341459282,-500.0,0.00032054,6]
[327709329,1716341459291,-592.57,0.00032054,6]
[327709330,1716341459301,-500.0,0.00032054,6]
[327709331,1716341459310,-417.49205007,0.00032054,6]
[327709332,1716341459321,-500.0,0.00032054,6]
[327709333,1716341459332,-227.15252902,0.00032054,6]
[327709334,1716341459342,-491.89609492,0.00032054,6]
[327709335,1716341459351,-500.0,0.00032054,6]
[327709336,1716341459360,-500.0,0.00032054,6]
[327709337,1716341459369,-1243.06,0.00032054,6]
[327709338,1716341459379,-500.0,0.00032054,6]
[327709339,1716341459388,-500.0,0.00032054,6]
[327709340,1716341459397,-500.0,0.00032054,6]
[327709341,1716341459406,-569.38,0.00032054,6]
[327709342,1716341459416,-500.0,0.00032054,6]
[327709343,1716341459425,-503.0,0.00032054,6]
[327709344,1716341459434,-500.0,0.00032054,6]
[327709345,1716341459447,-1051.15,0.00032054,6]
[327709346,1716341459456,-500.0,0.00032054,6]
[327709347,1716341459466,-710.62,0.00032054,6]
[327709348,1716341459475,-474.35473655,0.00032054,6]
[327709349,1716341459486,-494.93997233,0.00032054,6]
[327709350,1716341459496,-500.0,0.00032054,6]
[327709351,1716341459505,-2226.46,0.00032054,6]
[327709352,1716341459514,-2270.24,0.00032054,6]
[327709353,1716341459525,-1022.67,0.00032054,6]
[327709354,1716341459535,-1318.93,0.00032054,6]
[327709355,1716341459545,-500.0,0.00032054,6]
[327709356,1716341459554,-500.0,0.00032054,6]
[327709357,1716341459565,-500.0,0.00032054,6]
[327709358,1716341459574,-500.0,0.00032054,6]
[327709359,1716341459584,-500.0,0.00032054,6]
[327709360,1716341459593,-610.66,0.00032054,6]
[327709361,1716341459602,-500.0,0.00032054,6]
[327709362,1716341459611,-500.0,0.00032054,6]
[327709363,1716341459620,-500.0,0.00032054,6]
[327709364,1716341459629,-2234.44080277,0.000321,2]
[327709365,1716341459638,-160.0,0.00032182,2]
[327709366,1716341459647,-160.0,0.00032191,2]
[327709367,1716341459656,-160.0,0.000322,2]
[327709368,1716341459665,-400.0,0.00032307,2]
[327709369,1716341459674,-500.0,0.00032328,6]
[327709370,1716341459684,-500.0,0.00032328,6]
[327709371,1716341459694,-500.0,0.00032328,6]
[327709372,1716341459704,-500.0,0.00032328,6]
[327709373,1716341459714,-500.0,0.00032328,6]
[327709374,1716341459723,-500.0,0.00032328,6]
[327709375,1716341459733,-500.0,0.00032328,6]
[327709376,1716341459743,-592.57,0.00032328,6]
[327709377,1716341459752,-500.0,0.00032328,6]
[327709378,1716341459763,-436.40834591,0.00032328,6]
[327709379,1716341459772,-500.0,0.00032328,6]
[327709380,1716341459782,-500.0,0.00032328,6]
[327709381,1716341459791,-1243.06,0.00032328,6]
[327709382,1716341459800,-500.0,0.00032328,6]
[327709383,1716341459810,-500.0,0.00032328,6]
[327709384,1716341459820,-500.0,0.00032328,6]
[327709385,1716341459829,-569.38,0.00032328,6]
[327709386,1716341459838,-500.0,0.00032328,6]
[327709387,1716341459848,-503.0,0.00032328,6]
[327709388,1716341459857,-500.0,0.00032328,6]
[327709389,1716341459866,-1051.15,0.00032328,6]
[327709390,1716341459876,-500.0,0.00032328,6]
[327709391,1716341459885,-710.62,0.00032328,6]
[327709392,1716341459895,-500.0,0.00032328,6]
[327709393,1716341459904,-2226.46,0.00032328,6]
[327709394,1716341459914,-2270.24,0.00032328,6]
[327709395,1716341459924,-1022.67,0.00032328,6]
[327709396,1716341459933,-1318.93,0.00032328,6]
[327709397,1716341459942,-500.0,0.00032328,6]
[327709398,1716341459952,-327.86115257,0.00032328,6]
[327709399,1716341459961,-500.0,0.00032328,6]
[327709400,1716341459971,-500.0,0.00032328,6]
[327709401,1716341459980,-500.0,0.00032328,6]
[327709402,1716341459989,-500.0,0.00032328,6]
[327709403,1716341459998,-500.0,0.00032328,6]
[327709404,1716341460008,-500.0,0.00032328,6]
[327709405,1716341460018,-192.0425698,0.00032435,2]
[327709406,1716341460028,-4000.8743819,0.00032435,2]
[327709407,1716341460037,-222.2812612,0.00032435,2]
[327709408,1716341460047,-1413.0,0.00032457,5]
[327709409,1716341460056,-26248.0,0.00032457,5]
[327709410,1716341460066,-1687.4089633,0.00032497,2]
[327709411,1716341460075,-150.0,0.000325,5]
[327709412,1716341460085,-28081.0,0.0003252,5]
[327709413,1716341460094,-110988.0,0.0003252,5]
[327709414,1716341460103,-286.10139057,0.00032602,6]
[327709415,1716341460113,-500.0,0.00032602,6]
[327709416,1716341460122,-500.0,0.00032602,6]
[327709417,1716341460131,-500.0,0.00032602,6]
[327709418,1716341460140,-500.0,0.00032602,6]
[327709419,1716341460150,-500.0,0.00032602,6]
[327709420,1716341460160,-500.0,0.00032602,6]
[327709421,1716341460169,-592.57,0.00032602,6]
[327709422,1716341460178,-500.0,0.00032602,6]
[327709423,1716341460187,-207.90415946,0.00032602,6]
[327709424,1716341460197,-500.0,0.00032602,6]
[327709425,1716341460206,-1243.06,0.00032602,6]
[327709426,1716341460217,-500.0,0.00032602,6]
[327709427,1716341460226,-500.0,0.00032602,6]
[327709428,1716341460235,-500.0,0.00032602,6]
[327709429,1716341460245,-569.38,0.00032602,6]
[327709430,1716341460255,-500.0,0.00032602,6]
[327709431,1716341460264,-503.0,0.00032602,6]
[327709432,1716341460273,-500.0,0.00032602,6]
[327709433,1716341460283,-1051.15,0.00032602,6]
[327709434,1716341460293,-500.0,0.00032602,6]
[327709435,1716341460302,-710.62,0.00032602,6]
[327709436,1716341460311,-444.38927843,0.00032602,6]
[327709437,1716341460320,-2226.46,0.00032602,6]
[327709438,1716341460329,-2270.24,0.00032602,6]
[327709439,1716341460338,-1022.67,0.00032602,6]
[327709440,1716341460347,-1318.93,0.00032602,6]
[327709441,1716341460356,-500.0,0.00032602,6]
[327709442,1716341460366,-500.0,0.00032602,6]
[327709443,1716341460375,-390.71195097,0.00032602,6]
[327709444,1716341460385,-500.0,0.00032602,6]
[327709445,1716341460394,-500.0,0.00032602,6]
[327709446,1716341460403,-500.0,0.00032602,6]
[327709447,1716341460412,-500.0,0.00032602,6]
[327709448,1716341460422,-500.0,0.00032876,6]
[327709449,1716341460431,-500.0,0.00032876,6]
[327709450,1716341460440,-500.0,0.00032876,6]
[327709451,1716341460454,-500.0,0.00032876,6]
[327709452,1716341460464,-500.0,0.00032876,6]
[327709453,1716341460474,-500.0,0.00032876,6]
[327709454,1716341460483,-592.57,0.00032876,6]
[327709455,1716341460493,-500.0,0.00032876,6]
[327709456,1716341460502,-500.0,0.00032876,6]
[327709457,1716341460511,-1243.06,0.00032876,6]
[327709458,1716341460520,-500.0,0.00032876,6]
[327709459,1716341460532,-500.0,0.00032876,6]
[327709460,1716341460541,-500.0,0.00032876,6]
[327709461,1716341460551,-569.38,0.00032876,6]
[327709462,1716341460560,-500.0,0.00032876,6]
[327709463,1716341460569,-503.0,0.00032876,6]
[327709464,1716341460578,-334.65067851,0.00032876,6]
[327709465,1716341460588,-1051.15,0.00032876,6]
[327709466,1716341460597,-500.0,0.00032876,6]
[327709467,1716341460606,-710.62,0.00032876,6]
[327709468,1716341460615,-2226.46,0.00032876,6]
[327709469,1716341460625,-2270.24,0.00032876,6]
[327709470,1716341460635,-1022.67,0.00032876,6]
[327709471,1716341460644,-1318.93,0.00032876,6]
[327709472,1716341460654,-500.0,0.00032876,6]
[327709473,1716341460664,-500.0,0.00032876,6]
[327709474,1716341460673,-500.0,0.00032876,6]
[327709475,1716341460682,-406.50670968,0.00032876,6]
[327709476,1716341460692,-500.0,0.00032876,6]
[327709477,1716341460701,-500.0,0.00032876,6]
[327709478,1716341460710,-435.0,0.000329,10]
[327709479,1716341460720,-213.25506476,0.000329,2]
[327709480,1716341460729,-150.0,0.00033,2]
[327709481,1716341460739,-400.0,0.00033095,2]
[327709482,1716341460748,-500.0,0.0003315,6]
[327709483,1716341460758,-641.76950714,0.0003315,6]
[327709484,1716341460767,-500.0,0.0003315,6]
[327709485,1716341460776,-500.0,0.0003315,6]
[327709486,1716341460786,-500.0,0.0003315,6]
[327709487,1716341460795,-500.0,0.0003315,6]
[327709488,1716341460804,-592.57,0.0003315,6]
[327709489,1716341460813,-500.0,0.0003315,6]
[327709490,1716341460822,-500.0,0.0003315,6]
[327709491,1716341460832,-1243.06,0.0003315,6]
[327709492,1716341460841,-500.0,0.0003315,6]
[327709493,1716341460850,-500.0,0.0003315,6]
[327709494,1716341460861,-500.0,0.0003315,6]
[327709495,1716341460870,-569.38,0.0003315,6]
[327709496,1716341460880,-500.0,0.0003315,6]
[327709497,1716341460889,-503.0,0.0003315,6]
[327709498,1716341460898,-1051.15,0.0003315,6]
[327709499,1716341460907,-500.0,0.0003315,6]
[327709500,1716341460917,-710.62,0.0003315,6]
[327709501,1716341460926,-2226.46,0.0003315,6]
[327709502,1716341460936,-2270.24,0.0003315,6]
[327709503,1716341460945,-1022.67,0.0003315,6]
[327709504,1716341460954,-1318.93,0.0003315,6]
[327709505,1716341460964,-500.0,0.0003315,6]
[327709506,1716341460974,-500.0,0.0003315,6]
[327709507,1716341460983,-500.0,0.0003315,6]
[327709508,1716341460992,-500.0,0.0003315,6]
[327709509,1716341461001,-500.0,0.0003315,6]
[327709510,1716341461011,-553.54,0.00033237,2]
[327709511,1716341461020,-31832.33651111,0.00033355,5]
[327709512,1716341461030,-691.0,0.0003338,11]
[327709513,1716341461040,-262.38,0.00033396,2]
[327709514,1716341461049,-2100.0,0.00033409,2]
[327709515,1716341461059,-632.07345578,0.00033424,6]
[327709516,1716341461068,-500.0,0.00033424,6]
[327709517,1716341461077,-500.0,0.00033424,6]
[327709518,1716341461208,-500.0,0.00033424,6]
[327709519,1716341461221,-279.94215111,0.00033424,6]
[327709520,1716341461230,-592.57,0.00033424,6]
[327709521,1716341461239,-500.0,0.00033424,6]
[327709522,1716341461248,-500.0,0.00033424,6]
[327709523,1716341461258,-1243.06,0.00033424,6]
[327709524,1716341461267,-239.59376093,0.00033424,6]
[327709525,1716341461276,-500.0,0.00033424,6]
[327709526,1716341461286,-157.31881567,0.00033424,6]
[327709527,1716341461295,-569.38,0.00033424,6]
[327709528,1716341461304,-500.0,0.00033424,6]
[327709529,1716341461313,-503.0,0.00033424,6]
[327709530,1716341461322,-1051.15,0.00033424,6]
[327709531,1716341461332,-500.0,0.00033424,6]
[327709532,1716341461341,-710.62,0.00033424,6]
[327709533,1716341461350,-2226.46,0.00033424,6]
[327709534,1716341461359,-2270.24,0.00033424,6]
[327709535,1716341461368,-1022.67,0.00033424,6]
[327709536,1716341461377,-1318.93,0.00033424,6]
[327709537,1716341461386,-500.0,0.00033424,6]
[327709538,1716341461396,-206.10016683,0.00033424,6]
[327709539,1716341461405,-500.0,0.00033424,6]
[327709540,1716341461415,-500.0,0.00033424,6]
[327709541,1716341461424,-500.0,0.00033424,6]
[327709542,1716341461433,-153.43,0.000335,2]
[327709543,1716341461443,-153.43,0.000335,2]
[327709544,1716341461457,-153.43,0.000335,2]
[327709545,1716341461467,-153.43,0.000335,2]
[327709546,1716341461476,-153.43,0.000335,2]
[327709547,1716341461487,-153.43,0.000335,2]
[327709548,1716341461496,-1999.09,0.000335,2]
[327709549,1716341461505,-1999.09,0.000335,2]
[327709550,1716341461514,-1999.09,0.000335,2]
[327709551,1716341461524,-1999.09,0.000335,2]
[327709552,1716341461535,-1999.09,0.000335,2]
[327709553,1716341461544,-1999.09,0.000335,2]
[327709554,1716341461553,-1999.09,0.000335,2]
[327709555,1716341461562,-1999.09,0.000335,2]
[327709556,1716341461573,-1999.09,0.000335,2]
[327709557,1716341461583,-1999.09,0.000335,2]
[327709558,1716341461593,-1999.09,0.000335,2]
[327709559,1716341461602,-1999.09,0.000335,2]
[327709560,1716341461611,-1999.09,0.000335,2]
[327709561,1716341461621,-1999.09,0.000335,2]
[327709562,1716341461630,-1999.09,0.000335,2]
[327709563,1716341461642,-1999.09,0.000335,2]
[327709564,1716341461652,-1999.09,0.000335,2]
[327709565,1716341461663,-1999.09,0.000335,2]
[327709566,1716341461672,-1999.09,0.000335,2]
[327709567,1716341461682,-1999.09,0.000335,2]
[327709568,1716341461691,-500.0,0.00033698,6]
[327709569,1716341461700,-500.0,0.00033698,6]
[327709570,1716341461709,-500.0,0.00033698,6]
[327709571,1716341461720,-592.57,0.00033698,6]
[327709572,1716341461730,-500.0,0.00033698,6]
[327709573,1716341461741,-500.0,0.00033698,6]
[327709574,1716341461751,-1243.06,0.00033698,6]
[327709575,1716341461762,-500.0,0.00033698,6]
[327709576,1716341461772,-569.38,0.00033698,6]
[327709577,1716341461782,-500.0,0.00033698,6]
[327709578,1716341461792,-503.0,0.00033698,6]
[327709579,1716341461802,-1051.15,0.00033698,6]
[327709580,1716341461812,-233.23404205,0.00033698,6]
[327709581,1716341461821,-710.62,0.00033698,6]
[327709582,1716341461831,-2226.46,0.00033698,6]
[327709583,1716341461842,-2270.24,0.00033698,6]
[327709584,1716341461852,-1022.67,0.00033698,6]
[327709585,1716341461862,-1318.93,0.00033698,6]
[327709586,1716341461871,-500.0,0.00033698,6]
[327709587,1716341461881,-564.49595071,0.00033698,6]
[327709588,1716341461890,-500.0,0.00033698,6]
[327709589,1716341461899,-500.0,0.00033698,6]
[327709590,1716341461909,-400.0,0.00033883,2]
[327709591,1716341461918,-150.0,0.0003392,120]